[Event "Titled Tuesday Blitz April 4 Late 2023"]
[White "Leitao, Rafael"]
[Black "Firouzja, Alireza"]
[WhiteFideId "2101246"]
[BlackFideId "12573981"]
[WhiteElo "2609"]
[BlackElo "2904"]
[Result "1-0"]
[Round "04"]
[TimeControl "180+2"]
[Date "2023.04.04"]
[WhiteClock "0:00:15"]
[BlackClock "0:00:03"]

1. c4 {[%clk 0:03:00]}  e5 {[%clk 0:02:58]} 2. Nc3 {[%clk 0:03:00]}  d6 {[%clk 0:02:56]} 3. Nf3 {[%clk 0:02:55]}  f5 {[%clk 0:02:52]} 4. d3 {[%clk 0:02:50]}  Be7 {[%clk 0:02:51]} 5. g3 {[%clk 0:02:50]}  Nf6 {[%clk 0:02:51]} 6. Bg2 {[%clk 0:02:51]}  O-O {[%clk 0:02:51]} 7. O-O {[%clk 0:02:51]}  a5 {[%clk 0:02:52]} 8. Rb1 {[%clk 0:02:50]}  Qe8 {[%clk 0:02:46]} 9. e3 {[%clk 0:02:43]}  Nc6 {[%clk 0:02:32]} 10. a3 {[%clk 0:02:42]}  Qh5 {[%clk 0:02:26]} 11. b4 {[%clk 0:02:41]}  axb4 {[%clk 0:02:23]} 12. axb4 {[%clk 0:02:42]}  f4 {[%clk 0:02:24]} 13. b5 {[%clk 0:02:28]}  Nd8 {[%clk 0:02:23]} 14. exf4 {[%clk 0:02:26]}  Bg4 {[%clk 0:02:23]} 15. h3 {[%clk 0:02:18]}  Bxh3 {[%clk 0:02:21]} 16. Bxh3 {[%clk 0:01:48]}  Qxh3 {[%clk 0:02:13]} 17. Ng5 {[%clk 0:01:48]}  Qd7 {[%clk 0:02:05]} 18. fxe5 {[%clk 0:01:45]}  dxe5 {[%clk 0:02:05]} 19. Qe2 {[%clk 0:01:40]}  Ne6 {[%clk 0:01:57]} 20. Qxe5 {[%clk 0:01:34]}  Nc5 {[%clk 0:01:19]} 21. d4 {[%clk 0:01:23]}  Bd6 {[%clk 0:01:19]} 22. Qe2 {[%clk 0:01:11]}  Rae8 {[%clk 0:01:18]} 23. Qa2 {[%clk 0:01:10]}  Bxg3 {[%clk 0:01:07]} 24. fxg3 {[%clk 0:00:51]}  Qxd4+ {[%clk 0:01:07]} 25. Qf2 {[%clk 0:00:51]}  Qxc3 {[%clk 0:01:07]} 26. Bb2 {[%clk 0:00:51]}  Qxc4 {[%clk 0:00:41]} 27. Rbc1 {[%clk 0:00:49]}  Qg4 {[%clk 0:00:40]} 28. Rxc5 {[%clk 0:00:43]}  Re2 {[%clk 0:00:39]} 29. Qf4 {[%clk 0:00:29]}  Qxf4 {[%clk 0:00:31]} 30. gxf4 {[%clk 0:00:24]}  Rxb2 {[%clk 0:00:32]} 31. Rxc7 {[%clk 0:00:24]}  Rxb5 {[%clk 0:00:14]} 32. Ne6 {[%clk 0:00:23]}  Re8 {[%clk 0:00:14]} 33. Nxg7 {[%clk 0:00:19]}  Re3 {[%clk 0:00:14]} 34. Rd1 {[%clk 0:00:16]}  Rd5 {[%clk 0:00:12]} 35. Rxd5 {[%clk 0:00:16]}  Nxd5 {[%clk 0:00:13]} 36. Nf5 {[%clk 0:00:16]}  Re1+ {[%clk 0:00:08]} 37. Kf2 {[%clk 0:00:15]}  Nxc7 {[%clk 0:00:06]} 38. Kxe1 {[%clk 0:00:15]}  b5 {[%clk 0:00:04]} 39. Kd2 {[%clk 0:00:15]}  Kf7 {[%clk 0:00:03]} 40. Nh4 {[%clk 0:00:15]} 1-0


[Site "https://www.chess.com"]

[Event "Titled Tuesday Blitz April 4 Late 2023"]
[White "Yanchenko, Roman"]
[Black "Sargsyan, Shant"]
[WhiteFideId "4137329"]
[BlackFideId "13306766"]
[WhiteElo "2491"]
[BlackElo "2628"]
[Result "0-1"]
[Round "04"]
[TimeControl "180+2"]
[Date "2023.04.04"]
[WhiteClock "0:00:06"]
[BlackClock "0:00:43"]

1. d4 {[%clk 0:03:00]}  g6 {[%clk 0:02:58]} 2. c4 {[%clk 0:03:01]}  Bg7 {[%clk 0:02:58]} 3. Nf3 {[%clk 0:03:01]}  d6 {[%clk 0:02:59]} 4. Nc3 {[%clk 0:03:02]}  f5 {[%clk 0:02:59]} 5. g3 {[%clk 0:03:01]}  Nf6 {[%clk 0:02:58]} 6. Bg2 {[%clk 0:03:02]}  O-O {[%clk 0:02:57]} 7. b3 {[%clk 0:03:01]}  c6 {[%clk 0:02:58]} 8. Bb2 {[%clk 0:03:02]}  a5 {[%clk 0:02:57]} 9. O-O {[%clk 0:03:02]}  Na6 {[%clk 0:02:57]} 10. d5 {[%clk 0:02:46]}  e5 {[%clk 0:02:53]} 11. dxe6 {[%clk 0:02:46]}  Bxe6 {[%clk 0:02:53]} 12. Ng5 {[%clk 0:02:38]}  Bc8 {[%clk 0:02:47]} 13. Qd2 {[%clk 0:02:34]}  Qe7 {[%clk 0:02:35]} 14. Rad1 {[%clk 0:02:32]}  Rd8 {[%clk 0:02:36]} 15. Na4 {[%clk 0:02:25]}  h6 {[%clk 0:02:33]} 16. Nb6 {[%clk 0:02:23]}  Rb8 {[%clk 0:02:24]} 17. Nxc8 {[%clk 0:02:18]}  Rbxc8 {[%clk 0:02:25]} 18. Nf3 {[%clk 0:02:18]}  Ne4 {[%clk 0:02:23]} 19. Qc1 {[%clk 0:02:18]}  Nb4 {[%clk 0:02:15]} 20. Nd4 {[%clk 0:01:42]}  Nxa2 {[%clk 0:02:05]} 21. Qa1 {[%clk 0:01:42]}  Nb4 {[%clk 0:02:03]} 22. e3 {[%clk 0:00:37]}  Ra8 {[%clk 0:01:57]} 23. h3 {[%clk 0:00:33]}  Nc5 {[%clk 0:01:55]} 24. Qa3 {[%clk 0:00:29]}  Kh7 {[%clk 0:01:43]} 25. Kh2 {[%clk 0:00:28]}  h5 {[%clk 0:01:20]} 26. Bc3 {[%clk 0:00:28]}  h4 {[%clk 0:01:18]} 27. gxh4 {[%clk 0:00:23]}  Qxh4 {[%clk 0:01:15]} 28. Bxb4 {[%clk 0:00:22]}  axb4 {[%clk 0:01:16]} 29. Qxb4 {[%clk 0:00:23]}  Ra2 {[%clk 0:01:09]} 30. Rd2 {[%clk 0:00:18]}  Rda8 {[%clk 0:01:03]} 31. Rfd1 {[%clk 0:00:16]}  Bxd4 {[%clk 0:00:46]} 32. exd4 {[%clk 0:00:14]}  Qf4+ {[%clk 0:00:46]} 33. Kg1 {[%clk 0:00:15]}  Rxd2 {[%clk 0:00:46]} 34. Rxd2 {[%clk 0:00:13]}  Ra1+ {[%clk 0:00:45]} 35. Bf1 {[%clk 0:00:13]}  Qg5+ {[%clk 0:00:45]} 36. Kh2 {[%clk 0:00:11]}  Rxf1 {[%clk 0:00:46]} 37. dxc5 {[%clk 0:00:06]}  Qg1# {[%clk 0:00:43]} 0-1


[Site "https://www.chess.com"]

[Event "Titled Tuesday Blitz April 4 Late 2023"]
[White "Lamard, Guillaume"]
[Black "Movahed, Sina"]
[WhiteFideId "600261"]
[BlackFideId "42520835"]
[WhiteElo "2413"]
[BlackElo "2225"]
[Result "0-1"]
[Round "04"]
[TimeControl "180+2"]
[Date "2023.04.04"]
[WhiteClock "0:00:01"]
[BlackClock "0:00:07"]

1. d4 {[%clk 0:03:00]}  Nf6 {[%clk 0:03:00]} 2. Bf4 {[%clk 0:03:01]}  g6 {[%clk 0:02:59]} 3. Nc3 {[%clk 0:03:01]}  d5 {[%clk 0:02:58]} 4. e3 {[%clk 0:03:01]}  Bg7 {[%clk 0:02:55]} 5. Nb5 {[%clk 0:03:01]}  Na6 {[%clk 0:02:54]} 6. Nf3 {[%clk 0:03:02]}  O-O {[%clk 0:02:55]} 7. h3 {[%clk 0:03:02]}  c6 {[%clk 0:02:55]} 8. Nc3 {[%clk 0:03:02]}  Nc7 {[%clk 0:02:55]} 9. Bd3 {[%clk 0:03:02]}  a5 {[%clk 0:02:55]} 10. a4 {[%clk 0:03:01]}  Na6 {[%clk 0:02:55]} 11. O-O {[%clk 0:02:58]}  Nb4 {[%clk 0:02:56]} 12. e4 {[%clk 0:02:56]}  dxe4 {[%clk 0:02:54]} 13. Bxe4 {[%clk 0:02:47]}  Nxe4 {[%clk 0:02:38]} 14. Nxe4 {[%clk 0:02:47]}  Bf5 {[%clk 0:02:38]} 15. Re1 {[%clk 0:02:47]}  Qd5 {[%clk 0:02:38]} 16. Nc3 {[%clk 0:02:23]}  Qc4 {[%clk 0:02:18]} 17. Rc1 {[%clk 0:02:01]}  Rad8 {[%clk 0:02:11]} 18. Be5 {[%clk 0:01:52]}  Bh6 {[%clk 0:01:40]} 19. Nd2 {[%clk 0:01:46]}  Qa6 {[%clk 0:01:37]} 20. Nce4 {[%clk 0:01:38]}  f6 {[%clk 0:01:24]} 21. c3 {[%clk 0:00:57]}  Nd3 {[%clk 0:01:03]} 22. Bc7 {[%clk 0:00:52]}  Rd7 {[%clk 0:00:58]} 23. Bg3 {[%clk 0:00:40]}  Bxe4 {[%clk 0:00:55]} 24. Nxe4 {[%clk 0:00:35]}  Bxc1 {[%clk 0:00:53]} 25. Qb3+ {[%clk 0:00:27]}  Kg7 {[%clk 0:00:49]} 26. Rd1 {[%clk 0:00:25]}  c5 {[%clk 0:00:40]} 27. Qc2 {[%clk 0:00:14]}  c4 {[%clk 0:00:34]} 28. Rxc1 {[%clk 0:00:14]}  Nxc1 {[%clk 0:00:32]} 29. Nc5 {[%clk 0:00:15]}  Qc6 {[%clk 0:00:31]} 30. Nxd7 {[%clk 0:00:15]}  Qxd7 {[%clk 0:00:30]} 31. Qxc1 {[%clk 0:00:16]}  Qxa4 {[%clk 0:00:31]} 32. Qe3 {[%clk 0:00:16]}  Rf7 {[%clk 0:00:30]} 33. Kh2 {[%clk 0:00:16]}  Qb5 {[%clk 0:00:27]} 34. h4 {[%clk 0:00:16]}  h5 {[%clk 0:00:25]} 35. Qd2 {[%clk 0:00:14]}  a4 {[%clk 0:00:25]} 36. Bf4 {[%clk 0:00:14]}  Qf5 {[%clk 0:00:22]} 37. g3 {[%clk 0:00:14]}  b5 {[%clk 0:00:20]} 38. Bh6+ {[%clk 0:00:10]}  Kh7 {[%clk 0:00:20]} 39. Bf4 {[%clk 0:00:10]}  g5 {[%clk 0:00:19]} 40. hxg5 {[%clk 0:00:09]}  fxg5 {[%clk 0:00:20]} 41. Be3 {[%clk 0:00:10]}  h4 {[%clk 0:00:20]} 42. Qe2 {[%clk 0:00:08]}  Qf3 {[%clk 0:00:19]} 43. Qc2+ {[%clk 0:00:05]}  Kg7 {[%clk 0:00:16]} 44. Qd2 {[%clk 0:00:02]}  hxg3+ {[%clk 0:00:07]} 45. fxg3 {[%clk 0:00:03]}  Rf8 {[%clk 0:00:06]} 46. Kg1 {[%clk 0:00:01]}  Qf1+ {[%clk 0:00:06]} 47. Kh2 {[%clk 0:00:01]}  Rh8# {[%clk 0:00:07]} 0-1


[Site "https://www.chess.com"]

[Event "Titled Tuesday Blitz April 4 Late 2023"]
[White "Aydincelebi, Kagan"]
[Black "Chigaev, Maksim"]
[WhiteFideId "6361102"]
[BlackFideId "4108116"]
[WhiteElo "2180"]
[BlackElo "2547"]
[Result "0-1"]
[Round "04"]
[TimeControl "180+2"]
[Date "2023.04.04"]
[WhiteClock "0:00:10"]
[BlackClock "0:00:06"]

1. e4 {[%clk 0:03:00]}  c5 {[%clk 0:02:58]} 2. Nf3 {[%clk 0:03:01]}  Nc6 {[%clk 0:02:57]} 3. Bb5 {[%clk 0:03:00]}  e6 {[%clk 0:02:57]} 4. O-O {[%clk 0:03:00]}  Nge7 {[%clk 0:02:58]} 5. Re1 {[%clk 0:03:01]}  a6 {[%clk 0:02:58]} 6. Bf1 {[%clk 0:03:01]}  d5 {[%clk 0:02:57]} 7. exd5 {[%clk 0:03:02]}  Nxd5 {[%clk 0:02:58]} 8. d4 {[%clk 0:03:02]}  Nf6 {[%clk 0:02:57]} 9. Be3 {[%clk 0:03:02]}  Be7 {[%clk 0:02:58]} 10. c4 {[%clk 0:03:02]}  O-O {[%clk 0:02:57]} 11. Nc3 {[%clk 0:03:02]}  cxd4 {[%clk 0:02:58]} 12. Nxd4 {[%clk 0:03:03]}  Bd7 {[%clk 0:02:58]} 13. Qd2 {[%clk 0:02:59]}  Ng4 {[%clk 0:02:48]} 14. Nxc6 {[%clk 0:02:21]}  Bxc6 {[%clk 0:02:47]} 15. Qxd8 {[%clk 0:02:21]}  Rfxd8 {[%clk 0:02:36]} 16. Bb6 {[%clk 0:02:21]}  Rd7 {[%clk 0:02:35]} 17. Rad1 {[%clk 0:02:18]}  Nf6 {[%clk 0:02:32]} 18. f3 {[%clk 0:02:11]}  h5 {[%clk 0:02:30]} 19. Kf2 {[%clk 0:02:06]}  Rc8 {[%clk 0:02:27]} 20. a3 {[%clk 0:02:04]}  Rxd1 {[%clk 0:02:16]} 21. Rxd1 {[%clk 0:02:05]}  Nd7 {[%clk 0:02:16]} 22. Be3 {[%clk 0:02:04]}  Bf6 {[%clk 0:02:16]} 23. Bd4 {[%clk 0:01:58]}  Bh4+ {[%clk 0:01:53]} 24. g3 {[%clk 0:01:56]}  Be7 {[%clk 0:01:54]} 25. b4 {[%clk 0:01:56]}  Nf6 {[%clk 0:01:43]} 26. Bb6 {[%clk 0:01:49]}  Kf8 {[%clk 0:01:36]} 27. Be2 {[%clk 0:01:47]}  g6 {[%clk 0:01:35]} 28. Nb1 {[%clk 0:01:32]}  Ke8 {[%clk 0:01:31]} 29. Nd2 {[%clk 0:01:29]}  Nd7 {[%clk 0:01:26]} 30. Be3 {[%clk 0:01:29]}  Rd8 {[%clk 0:01:22]} 31. Nb3 {[%clk 0:01:27]}  Ba4 {[%clk 0:01:21]} 32. Rb1 {[%clk 0:01:27]}  Ne5 {[%clk 0:01:15]} 33. Na5 {[%clk 0:01:20]}  Nd3+ {[%clk 0:01:08]} 34. Kf1 {[%clk 0:01:09]}  Rd7 {[%clk 0:00:47]} 35. Bd1 {[%clk 0:01:05]}  Nb2 {[%clk 0:00:20]} 36. Bxa4 {[%clk 0:00:50]}  Nxa4 {[%clk 0:00:21]} 37. Rb3 {[%clk 0:00:50]}  Bd8 {[%clk 0:00:21]} 38. Ke2 {[%clk 0:00:47]}  e5 {[%clk 0:00:21]} 39. g4 {[%clk 0:00:41]}  f5 {[%clk 0:00:21]} 40. gxh5 {[%clk 0:00:41]}  gxh5 {[%clk 0:00:21]} 41. Rd3 {[%clk 0:00:34]}  Bxa5 {[%clk 0:00:20]} 42. bxa5 {[%clk 0:00:34]}  Rxd3 {[%clk 0:00:18]} 43. Kxd3 {[%clk 0:00:35]}  Kd7 {[%clk 0:00:18]} 44. h4 {[%clk 0:00:29]}  Kd6 {[%clk 0:00:18]} 45. Ba7 {[%clk 0:00:28]}  Nc5+ {[%clk 0:00:17]} 46. Ke3 {[%clk 0:00:24]}  Nd7 {[%clk 0:00:16]} 47. f4 {[%clk 0:00:22]}  Ke6 {[%clk 0:00:14]} 48. Kf3 {[%clk 0:00:18]}  e4+ {[%clk 0:00:07]} 49. Ke3 {[%clk 0:00:18]}  Nf8 {[%clk 0:00:07]} 50. Kd4 {[%clk 0:00:12]}  Ng6 {[%clk 0:00:07]} 51. Kc5 {[%clk 0:00:12]}  Kd7 {[%clk 0:00:04]} 52. Kd5 {[%clk 0:00:11]}  Nxh4 {[%clk 0:00:04]} 53. Ke5 {[%clk 0:00:12]}  Kc6 {[%clk 0:00:04]} 54. Be3 {[%clk 0:00:12]}  Ng2 {[%clk 0:00:04]} 55. Bf2 {[%clk 0:00:09]}  e3 {[%clk 0:00:04]} 56. Be1 {[%clk 0:00:10]}  h4 {[%clk 0:00:05]} 57. Kxf5 {[%clk 0:00:10]}  h3 {[%clk 0:00:06]} 58. Bg3 {[%clk 0:00:10]}  e2 {[%clk 0:00:06]} 0-1


[Site "https://www.chess.com"]

[Event "Titled Tuesday Blitz April 4 Late 2023"]
[White "Schmakel, Sam"]
[Black "Grigorov, Grigor"]
[WhiteFideId "2039311"]
[BlackFideId "2907313"]
[WhiteElo "2356"]
[BlackElo "2510"]
[Result "1-0"]
[Round "04"]
[TimeControl "180+2"]
[Date "2023.04.04"]
[WhiteClock "0:00:06"]
[BlackClock "0:00:07"]

1. Nf3 {[%clk 0:03:00]}  Nf6 {[%clk 0:02:59]} 2. g3 {[%clk 0:03:00]}  b6 {[%clk 0:02:57]} 3. Bg2 {[%clk 0:03:00]}  Bb7 {[%clk 0:02:57]} 4. O-O {[%clk 0:02:59]}  e6 {[%clk 0:02:57]} 5. c4 {[%clk 0:02:58]}  Be7 {[%clk 0:02:57]} 6. d4 {[%clk 0:02:56]}  O-O {[%clk 0:02:56]} 7. Re1 {[%clk 0:02:57]}  Ne4 {[%clk 0:02:56]} 8. Nfd2 {[%clk 0:02:53]}  d5 {[%clk 0:02:55]} 9. Nxe4 {[%clk 0:02:42]}  dxe4 {[%clk 0:02:55]} 10. Nc3 {[%clk 0:02:43]}  f5 {[%clk 0:02:55]} 11. f3 {[%clk 0:02:30]}  Bf6 {[%clk 0:02:55]} 12. e3 {[%clk 0:02:29]}  exf3 {[%clk 0:02:54]} 13. Bxf3 {[%clk 0:02:30]}  Bxf3 {[%clk 0:02:54]} 14. Qxf3 {[%clk 0:02:31]}  Na6 {[%clk 0:02:54]} 15. Rd1 {[%clk 0:02:09]}  Qc8 {[%clk 0:02:49]} 16. Bd2 {[%clk 0:01:57]}  Rd8 {[%clk 0:02:21]} 17. a3 {[%clk 0:01:46]}  c5 {[%clk 0:02:20]} 18. d5 {[%clk 0:01:45]}  Nc7 {[%clk 0:02:20]} 19. Be1 {[%clk 0:01:37]}  Ne8 {[%clk 0:02:07]} 20. Kg2 {[%clk 0:01:28]}  Nd6 {[%clk 0:02:05]} 21. b3 {[%clk 0:01:14]}  Ne4 {[%clk 0:01:54]} 22. Rac1 {[%clk 0:01:14]}  Bxc3 {[%clk 0:01:01]} 23. Bxc3 {[%clk 0:01:15]}  exd5 {[%clk 0:01:01]} 24. cxd5 {[%clk 0:01:14]}  Qd7 {[%clk 0:00:57]} 25. Ba1 {[%clk 0:00:59]}  Rf8 {[%clk 0:00:49]} 26. Qf4 {[%clk 0:00:47]}  Rae8 {[%clk 0:00:48]} 27. b4 {[%clk 0:00:47]}  h6 {[%clk 0:00:48]} 28. h4 {[%clk 0:00:35]}  Rf7 {[%clk 0:00:34]} 29. Qf3 {[%clk 0:00:30]}  Rc8 {[%clk 0:00:22]} 30. bxc5 {[%clk 0:00:29]}  bxc5 {[%clk 0:00:20]} 31. Rc4 {[%clk 0:00:26]}  Nd6 {[%clk 0:00:14]} 32. Rf4 {[%clk 0:00:26]}  c4 {[%clk 0:00:14]} 33. Rc1 {[%clk 0:00:20]}  Ne4 {[%clk 0:00:13]} 34. g4 {[%clk 0:00:18]}  Nd2 {[%clk 0:00:13]} 35. Qe2 {[%clk 0:00:16]}  Qxd5+ {[%clk 0:00:13]} 36. Kh3 {[%clk 0:00:14]}  Nb3 {[%clk 0:00:13]} 37. Rd1 {[%clk 0:00:14]}  Qe6 {[%clk 0:00:12]} 38. gxf5 {[%clk 0:00:12]}  Rxf5 {[%clk 0:00:12]} 39. Qg4 {[%clk 0:00:11]}  Rf6 {[%clk 0:00:08]} 40. Bxf6 {[%clk 0:00:08]}  Qxg4+ {[%clk 0:00:08]} 41. Rxg4 {[%clk 0:00:09]}  Rc7 {[%clk 0:00:07]} 42. Rdg1 {[%clk 0:00:07]}  Kf7 {[%clk 0:00:05]} 43. Rxg7+ {[%clk 0:00:07]}  Kxf6 {[%clk 0:00:06]} 44. Rxc7 {[%clk 0:00:07]}  Nd2 {[%clk 0:00:07]} 45. h5 {[%clk 0:00:06]}  Ke5 {[%clk 0:00:07]} 46. Rg6 {[%clk 0:00:06]}  Ne4 {[%clk 0:00:07]} 47. Re7+ {[%clk 0:00:05]}  Kd5 {[%clk 0:00:07]} 48. Rxe4 {[%clk 0:00:05]}  Kxe4 {[%clk 0:00:07]} 49. Rxh6 {[%clk 0:00:06]} 1-0


[Site "https://www.chess.com"]

[Event "Titled Tuesday Blitz April 4 Late 2023"]
[White "EREBUNI91"]
[Black "Timofeev, Artyom"]
[BlackFideId "4140419"]
[WhiteElo "2659"]
[BlackElo "2586"]
[Result "0-1"]
[Round "04"]
[TimeControl "180+2"]
[Date "2023.04.04"]
[WhiteClock "0:00:28"]
[BlackClock "0:01:11"]

1. e4 {[%clk 0:03:00]}  d6 {[%clk 0:02:59]} 2. d4 {[%clk 0:03:00]}  Nf6 {[%clk 0:02:59]} 3. Nc3 {[%clk 0:03:00]}  g6 {[%clk 0:02:59]} 4. Nf3 {[%clk 0:02:59]}  Bg7 {[%clk 0:02:58]} 5. Bd3 {[%clk 0:02:54]}  O-O {[%clk 0:02:57]} 6. O-O {[%clk 0:02:53]}  Bg4 {[%clk 0:02:56]} 7. h3 {[%clk 0:02:51]}  Bxf3 {[%clk 0:02:56]} 8. Qxf3 {[%clk 0:02:52]}  Nc6 {[%clk 0:02:54]} 9. Ne2 {[%clk 0:02:41]}  e5 {[%clk 0:02:50]} 10. d5 {[%clk 0:02:39]}  Ne7 {[%clk 0:02:49]} 11. Be3 {[%clk 0:01:58]}  Nd7 {[%clk 0:02:45]} 12. Qg3 {[%clk 0:01:56]}  f5 {[%clk 0:02:35]} 13. f4 {[%clk 0:01:56]}  fxe4 {[%clk 0:02:24]} 14. Bxe4 {[%clk 0:01:57]}  Nf6 {[%clk 0:02:23]} 15. Qf3 {[%clk 0:01:52]}  Nxe4 {[%clk 0:02:16]} 16. Qxe4 {[%clk 0:01:51]}  Nf5 {[%clk 0:02:16]} 17. Bd2 {[%clk 0:01:43]}  Qd7 {[%clk 0:02:11]} 18. fxe5 {[%clk 0:01:25]}  Bxe5 {[%clk 0:02:10]} 19. Nf4 {[%clk 0:01:25]}  Bxf4 {[%clk 0:02:07]} 20. Bxf4 {[%clk 0:01:25]}  Rae8 {[%clk 0:02:07]} 21. Qd3 {[%clk 0:01:25]}  Qa4 {[%clk 0:02:03]} 22. b3 {[%clk 0:01:14]}  Qd4+ {[%clk 0:02:02]} 23. Qxd4 {[%clk 0:01:13]}  Nxd4 {[%clk 0:02:02]} 24. Bh6 {[%clk 0:01:05]}  Rxf1+ {[%clk 0:01:45]} 25. Rxf1 {[%clk 0:01:06]}  Nxc2 {[%clk 0:01:43]} 26. Rc1 {[%clk 0:01:06]}  Re1+ {[%clk 0:01:42]} 27. Rxe1 {[%clk 0:01:00]}  Nxe1 {[%clk 0:01:42]} 28. Bd2 {[%clk 0:00:52]}  Nd3 {[%clk 0:01:40]} 29. Kf1 {[%clk 0:00:51]}  Kf7 {[%clk 0:01:36]} 30. Ke2 {[%clk 0:00:50]}  Nc5 {[%clk 0:01:34]} 31. Ke3 {[%clk 0:00:50]}  Nd7 {[%clk 0:01:21]} 32. Kd4 {[%clk 0:00:49]}  c5+ {[%clk 0:01:21]} 33. Kc4 {[%clk 0:00:35]}  Nb6+ {[%clk 0:01:20]} 34. Kb5 {[%clk 0:00:34]}  Nxd5 {[%clk 0:01:20]} 35. a4 {[%clk 0:00:33]}  Ke6 {[%clk 0:01:17]} 36. Bh6 {[%clk 0:00:30]}  Nc7+ {[%clk 0:01:13]} 37. Kc4 {[%clk 0:00:30]}  b6 {[%clk 0:01:12]} 38. Bf4 {[%clk 0:00:28]}  a6 {[%clk 0:01:11]} 0-1


[Site "https://www.chess.com"]

[Event "Titled Tuesday Blitz April 4 Late 2023"]
[White "Szpar, Milosz"]
[Black "Perske, Thore"]
[WhiteFideId "1184989"]
[BlackFideId "12902195"]
[WhiteElo "2436"]
[BlackElo "2336"]
[Result "1-0"]
[Round "04"]
[TimeControl "180+2"]
[Date "2023.04.04"]
[WhiteClock "0:00:18"]
[BlackClock "0:00:10"]

1. e4 {[%clk 0:03:00]}  c6 {[%clk 0:02:59]} 2. d4 {[%clk 0:02:58]}  d5 {[%clk 0:02:58]} 3. e5 {[%clk 0:02:59]}  Bf5 {[%clk 0:02:58]} 4. h4 {[%clk 0:02:55]}  h5 {[%clk 0:02:58]} 5. c4 {[%clk 0:02:52]}  e6 {[%clk 0:02:56]} 6. Nc3 {[%clk 0:02:51]}  Bb4 {[%clk 0:02:51]} 7. Qb3 {[%clk 0:02:47]}  Bxc3+ {[%clk 0:02:30]} 8. bxc3 {[%clk 0:02:47]}  Qb6 {[%clk 0:02:30]} 9. Ba3 {[%clk 0:02:40]}  Qxb3 {[%clk 0:02:26]} 10. axb3 {[%clk 0:02:40]}  Ne7 {[%clk 0:02:24]} 11. Kd2 {[%clk 0:02:30]}  Nd7 {[%clk 0:02:02]} 12. Ne2 {[%clk 0:02:27]}  f6 {[%clk 0:02:00]} 13. exf6 {[%clk 0:02:24]}  gxf6 {[%clk 0:01:58]} 14. Ng3 {[%clk 0:02:20]}  Bg6 {[%clk 0:01:58]} 15. Re1 {[%clk 0:02:19]}  Kf7 {[%clk 0:01:57]} 16. Bd3 {[%clk 0:01:51]}  Bxd3 {[%clk 0:01:55]} 17. Kxd3 {[%clk 0:01:52]}  Rae8 {[%clk 0:01:45]} 18. Re2 {[%clk 0:01:49]}  Ng6 {[%clk 0:01:17]} 19. Bd6 {[%clk 0:01:49]}  b5 {[%clk 0:01:15]} 20. Ra2 {[%clk 0:01:45]}  bxc4+ {[%clk 0:01:14]} 21. bxc4 {[%clk 0:01:46]}  Ra8 {[%clk 0:01:13]} 22. Rha1 {[%clk 0:01:42]}  dxc4+ {[%clk 0:01:05]} 23. Kxc4 {[%clk 0:01:42]}  Nb6+ {[%clk 0:01:03]} 24. Kd3 {[%clk 0:01:42]}  Nc8 {[%clk 0:01:02]} 25. Bc5 {[%clk 0:01:29]}  Nxh4 {[%clk 0:01:02]} 26. f3 {[%clk 0:01:23]}  Ng6 {[%clk 0:00:58]} 27. Rb1 {[%clk 0:01:16]}  h4 {[%clk 0:00:54]} 28. Rb7+ {[%clk 0:01:14]}  Nce7 {[%clk 0:00:50]} 29. Ne4 {[%clk 0:01:14]}  h3 {[%clk 0:00:43]} 30. gxh3 {[%clk 0:00:57]}  Rxh3 {[%clk 0:00:44]} 31. Kc4 {[%clk 0:00:50]}  Rxf3 {[%clk 0:00:39]} 32. Rh2 {[%clk 0:00:50]}  Rf4 {[%clk 0:00:20]} 33. Kd3 {[%clk 0:00:41]}  a5 {[%clk 0:00:15]} 34. Ke3 {[%clk 0:00:27]}  Rf1 {[%clk 0:00:14]} 35. Ke2 {[%clk 0:00:21]}  Rc1 {[%clk 0:00:10]} 36. Rh7+ {[%clk 0:00:21]}  Kg8 {[%clk 0:00:10]} 37. Nxf6+ {[%clk 0:00:21]}  Kf8 {[%clk 0:00:10]} 38. Rbxe7 {[%clk 0:00:18]}  Nxe7 {[%clk 0:00:10]} 39. Bxe7# {[%clk 0:00:18]} 1-0


[Site "https://www.chess.com"]

[Event "Titled Tuesday Blitz April 4 Late 2023"]
[White "Andreikin, Dmitry"]
[Black "Mihajlov, Sebastian"]
[WhiteFideId "4158814"]
[BlackFideId "1512110"]
[WhiteElo "2736"]
[BlackElo "2478"]
[Result "1-0"]
[Round "04"]
[TimeControl "180+2"]
[Date "2023.04.04"]
[WhiteClock "0:01:35"]
[BlackClock "0:00:17"]

1. d4 {[%clk 0:03:00]}  d5 {[%clk 0:02:59]} 2. c4 {[%clk 0:03:00]}  c6 {[%clk 0:03:00]} 3. Nf3 {[%clk 0:02:59]}  Nf6 {[%clk 0:03:00]} 4. e3 {[%clk 0:02:59]}  Bg4 {[%clk 0:03:00]} 5. Nc3 {[%clk 0:02:57]}  e6 {[%clk 0:03:00]} 6. h3 {[%clk 0:02:56]}  Bh5 {[%clk 0:03:01]} 7. g4 {[%clk 0:02:57]}  Bg6 {[%clk 0:03:02]} 8. Ne5 {[%clk 0:02:57]}  Nbd7 {[%clk 0:03:02]} 9. Nxg6 {[%clk 0:02:57]}  hxg6 {[%clk 0:03:03]} 10. a3 {[%clk 0:02:56]}  Bd6 {[%clk 0:02:54]} 11. Bd2 {[%clk 0:02:55]}  Qe7 {[%clk 0:02:47]} 12. Qb3 {[%clk 0:02:49]}  Rb8 {[%clk 0:02:44]} 13. Be2 {[%clk 0:02:48]}  dxc4 {[%clk 0:02:37]} 14. Qxc4 {[%clk 0:02:48]}  e5 {[%clk 0:02:35]} 15. g5 {[%clk 0:02:36]}  Nh7 {[%clk 0:02:30]} 16. d5 {[%clk 0:02:31]}  Nb6 {[%clk 0:02:22]} 17. Qb3 {[%clk 0:02:31]}  Nxg5 {[%clk 0:02:17]} 18. O-O-O {[%clk 0:02:29]}  e4 {[%clk 0:02:01]} 19. dxc6 {[%clk 0:02:21]}  bxc6 {[%clk 0:02:02]} 20. Qc2 {[%clk 0:02:21]}  f5 {[%clk 0:01:38]} 21. Rdg1 {[%clk 0:02:17]}  Kf7 {[%clk 0:01:29]} 22. h4 {[%clk 0:02:14]}  Ne6 {[%clk 0:01:12]} 23. h5 {[%clk 0:02:12]}  g5 {[%clk 0:00:44]} 24. f3 {[%clk 0:02:11]}  Bxa3 {[%clk 0:00:33]} 25. fxe4 {[%clk 0:01:59]}  Nc4 {[%clk 0:00:25]} 26. Bxc4 {[%clk 0:01:48]}  Rxb2 {[%clk 0:00:24]} 27. exf5 {[%clk 0:01:47]}  Qb4 {[%clk 0:00:16]} 28. fxe6+ {[%clk 0:01:38]}  Kg8 {[%clk 0:00:16]} 29. e7+ {[%clk 0:01:35]}  Qxc4 {[%clk 0:00:17]} 30. e8=Q+ {[%clk 0:01:35]} 1-0


[Site "https://www.chess.com"]